[Event "*** Titled Tuesday Blitz"]
[Site "Chess.com"]
[Date "2020.05.19"]
[Round "3"]
[White "Caterpiller35"]
[Black "MomchilPetkov"]
[Result "0-1"]
[WhiteElo "2342"]
[BlackElo "2557"]
[TimeControl "180+1"]
[EndTime "12:27:34 PDT"]
[Termination "MomchilPetkov won by resignation"]

1. d4 {[%clk 0:03:00]} 1... Nf6 {[%clk 0:02:59.1]} 2. Bg5 {[%clk 0:03:00]} 2...
c5 {[%clk 0:02:47.8]} 3. Bxf6 {[%clk 0:02:58.7]} 3... gxf6 {[%clk 0:02:48.7]} 4.
d5 {[%clk 0:02:58.9]} 4... Qb6 {[%clk 0:02:48.8]} 5. Qc1 {[%clk 0:02:59.1]} 5...
f5 {[%clk 0:02:48.7]} 6. Nc3 {[%clk 0:02:58.9]} 6... Bg7 {[%clk 0:02:47.4]} 7.
e3 {[%clk 0:02:54.5]} 7... Qg6 {[%clk 0:02:36.9]} 8. g3 {[%clk 0:02:53.5]} 8...
d6 {[%clk 0:02:36.3]} 9. Nge2 {[%clk 0:02:53.5]} 9... Nd7 {[%clk 0:02:29]} 10.
Nf4 {[%clk 0:02:51.5]} 10... Bxc3+ {[%clk 0:02:28.9]} 11. bxc3 {[%clk
0:02:50.7]} 11... Qg7 {[%clk 0:02:28.1]} 12. Qd2 {[%clk 0:02:39.4]} 12... Ne5
{[%clk 0:02:28]} 13. Bg2 {[%clk 0:02:38]} 13... Bd7 {[%clk 0:02:12.2]} 14. O-O
{[%clk 0:02:30]} 14... O-O {[%clk 0:02:10.9]} 15. a4 {[%clk 0:02:23.8]} 15... b6
{[%clk 0:02:09.1]} 16. Rfb1 {[%clk 0:02:22.3]} 16... Rfb8 {[%clk 0:02:05.4]} 17.
Qe2 {[%clk 0:02:14.3]} 17... a6 {[%clk 0:02:01.9]} 18. c4 {[%clk 0:02:11.5]}
18... Rb7 {[%clk 0:01:47.7]} 19. Rb3 {[%clk 0:02:07.7]} 19... Nf3+ {[%clk
0:01:36.3]} 20. Bxf3 {[%clk 0:02:07.2]} 20... Qxa1+ {[%clk 0:01:36.6]} 21. Kg2
{[%clk 0:02:07.5]} 21... Bxa4 {[%clk 0:01:32.5]} 22. Rd3 {[%clk 0:02:04.7]}
22... Qb2 {[%clk 0:01:28.1]} 23. e4 {[%clk 0:01:54.9]} 23... Qxc2 {[%clk
0:01:19.2]} 24. Rd2 {[%clk 0:01:54.8]} 24... Qc3 {[%clk 0:01:16.2]} 25. exf5
{[%clk 0:01:53.2]} 25... Bb3 {[%clk 0:01:02.4]} 26. Be4 {[%clk 0:01:50]} 26...
Bxc4 {[%clk 0:01:00]} 27. Qg4+ {[%clk 0:01:48.1]} 27... Qg7 {[%clk 0:01:00]} 28.
Qh4 {[%clk 0:01:46.3]} 28... h6 {[%clk 0:00:56]} 29. Nh5 {[%clk 0:01:44]} 29...
Qg5 {[%clk 0:00:55.6]} 30. Qh3 {[%clk 0:01:32.6]} 30... Qxd2 {[%clk 0:00:51.8]}
31. f6 {[%clk 0:01:32.5]} 31... Qc1 {[%clk 0:00:33.2]} 32. Qg4+ {[%clk
0:01:20.2]} 32... Qg5 {[%clk 0:00:33.1]} 33. Qh3 {[%clk 0:01:20.4]} 33... Bxd5
{[%clk 0:00:31.6]} 0-1

[Event "*** Titled Tuesday Blitz"]
[Site "Chess.com"]
[Date "2020.05.19"]
[Round "3"]
[White "davekoenig"]
[Black "Munkhzul_Turmunkh"]
[Result "0-1"]
[WhiteElo "2175"]
[BlackElo "2481"]
[TimeControl "180+1"]
[EndTime "12:27:34 PDT"]
[Termination "Munkhzul_Turmunkh won by checkmate"]

1. e4 {[%clk 0:03:00.9]} 1... c5 {[%clk 0:02:59.8]} 2. Nc3 {[%clk 0:03:00.7]}
2... Nc6 {[%clk 0:02:59.5]} 3. g3 {[%clk 0:03:01.1]} 3... g6 {[%clk 0:02:59.5]}
4. Bg2 {[%clk 0:03:01.8]} 4... Bg7 {[%clk 0:03:00]} 5. d3 {[%clk 0:03:02.2]}
5... d6 {[%clk 0:03:00.1]} 6. f4 {[%clk 0:03:01.6]} 6... e6 {[%clk 0:02:58.4]}
7. Nf3 {[%clk 0:03:01.8]} 7... Nge7 {[%clk 0:02:58.9]} 8. O-O {[%clk 0:03:02.1]}
8... O-O {[%clk 0:02:59.1]} 9. Be3 {[%clk 0:03:02.3]} 9... b6 {[%clk 0:02:57]}
10. d4 {[%clk 0:03:01]} 10... cxd4 {[%clk 0:02:53.7]} 11. Nxd4 {[%clk 0:03:01]}
11... Bb7 {[%clk 0:02:54]} 12. Qd2 {[%clk 0:02:58.4]} 12... Na5 {[%clk 0:02:46]}
13. Bf2 {[%clk 0:02:45.2]} 13... Nc4 {[%clk 0:02:44.1]} 14. Qc1 {[%clk
0:02:45.2]} 14... d5 {[%clk 0:02:40.4]} 15. e5 {[%clk 0:02:35]} 15... Rc8 {[%clk
0:02:38.2]} 16. a4 {[%clk 0:02:31.2]} 16... a6 {[%clk 0:02:32.6]} 17. Nd1 {[%clk
0:02:22.1]} 17... Qc7 {[%clk 0:02:30.8]} 18. b3 {[%clk 0:02:20.1]} 18... Na5
{[%clk 0:02:29.4]} 19. Qb2 {[%clk 0:02:17.7]} 19... Nec6 {[%clk 0:02:24.4]} 20.
c3 {[%clk 0:02:13.2]} 20... Nxd4 {[%clk 0:02:16.8]} 21. Bxd4 {[%clk 0:02:11.1]}
21... Nc6 {[%clk 0:02:15.8]} 22. Be3 {[%clk 0:01:58.7]} 22... h5 {[%clk
0:02:15]} 23. Qf2 {[%clk 0:01:58.2]} 23... d4 {[%clk 0:01:51.1]} 24. cxd4 {[%clk
0:01:48.3]} 24... Nb4 {[%clk 0:01:50.8]} 25. Rc1 {[%clk 0:01:45.5]} 25... Qd7
{[%clk 0:01:48.6]} 26. Nb2 {[%clk 0:01:29]} 26... Bxg2 {[%clk 0:01:37.4]} 27.
Qxg2 {[%clk 0:01:26.4]} 27... Nd5 {[%clk 0:01:36.8]} 28. Bf2 {[%clk 0:01:20.3]}
28... Rxc1 {[%clk 0:01:32.9]} 29. Rxc1 {[%clk 0:01:19.8]} 29... Rc8 {[%clk
0:01:33.8]} 30. Qf1 {[%clk 0:01:16.4]} 30... Bf8 {[%clk 0:01:28.8]} 31. Nd3
{[%clk 0:01:02.3]} 31... Ba3 {[%clk 0:01:24]} 32. Rxc8+ {[%clk 0:00:58.8]} 32...
Qxc8 {[%clk 0:01:24.9]} 33. Qa1 {[%clk 0:00:58.3]} 33... Qc2 {[%clk 0:01:13]}
34. Qxa3 {[%clk 0:00:45.9]} 34... Qxd3 {[%clk 0:01:13]} 35. Qb2 {[%clk
0:00:44.5]} 35... h4 {[%clk 0:01:01.1]} 36. Kg2 {[%clk 0:00:42.4]} 36... Qe4+
{[%clk 0:00:59.7]} 37. Kh3 {[%clk 0:00:42.5]} 37... Qf5+ {[%clk 0:00:54.2]} 38.
Kxh4 {[%clk 0:00:42.1]} 38... Qh5# {[%clk 0:00:53.3]} 0-1

[Event "*** Titled Tuesday Blitz"]
[Site "Chess.com"]
[Date "2020.05.19"]
[Round "3"]
[White "bascheyaro"]
[Black "ramses135"]
[Result "1-0"]
[WhiteElo "2703"]
[BlackElo "2503"]
[TimeControl "180+1"]
[EndTime "12:27:35 PDT"]
[Termination "bascheyaro won on time"]

1. d4 {[%clk 0:03:00.9]} 1... f5 {[%clk 0:02:59.1]} 2. c4 {[%clk 0:03:01.2]}
2... Nf6 {[%clk 0:02:59.2]} 3. g3 {[%clk 0:03:01.7]} 3... g6 {[%clk 0:02:59.4]}
4. Bg2 {[%clk 0:03:02.2]} 4... Bg7 {[%clk 0:03:00.3]} 5. b3 {[%clk 0:03:02.7]}
5... O-O {[%clk 0:03:01.2]} 6. Bb2 {[%clk 0:03:03.3]} 6... d6 {[%clk 0:03:00.7]}
7. Nf3 {[%clk 0:03:02.9]} 7... Qe8 {[%clk 0:02:53.4]} 8. O-O {[%clk 0:03:02.6]}
8... Na6 {[%clk 0:02:35.4]} 9. Re1 {[%clk 0:02:59.6]} 9... c6 {[%clk 0:02:11.6]}
10. Nbd2 {[%clk 0:02:57]} 10... Ne4 {[%clk 0:02:10.3]} 11. e3 {[%clk 0:02:55]}
11... Nxd2 {[%clk 0:02:03.3]} 12. Qxd2 {[%clk 0:02:53.1]} 12... e5 {[%clk
0:02:04.2]} 13. dxe5 {[%clk 0:02:52]} 13... dxe5 {[%clk 0:02:05.1]} 14. Qd6
{[%clk 0:02:46.6]} 14... e4 {[%clk 0:01:32.4]} 15. Bxg7 {[%clk 0:02:45.6]} 15...
Kxg7 {[%clk 0:01:33.3]} 16. Ne5 {[%clk 0:02:19.7]} 16... Rf6 {[%clk 0:01:21.3]}
17. Qd4 {[%clk 0:02:19.6]} 17... c5 {[%clk 0:00:51.3]} 18. Qc3 {[%clk
0:02:19.4]} 18... Kg8 {[%clk 0:00:42.5]} 19. Red1 {[%clk 0:02:17.4]} 19... Re6
{[%clk 0:00:41.3]} 20. Rd5 {[%clk 0:01:50.4]} 20... Nc7 {[%clk 0:00:19.6]} 21.
Rxc5 {[%clk 0:01:50.4]} 21... Na6 {[%clk 0:00:20.1]} 22. Rd5 {[%clk 0:01:35.1]}
22... Nc7 {[%clk 0:00:20.3]} 23. f4 {[%clk 0:01:35.3]} 23... Nxd5 {[%clk
0:00:18.8]} 24. cxd5 {[%clk 0:01:35.2]} 24... Rd6 {[%clk 0:00:18.8]} 25. Bf1
{[%clk 0:01:34.8]} 25... Qd8 {[%clk 0:00:15.9]} 26. Rc1 {[%clk 0:01:30.2]} 26...
Bd7 {[%clk 0:00:15.5]} 27. Qc7 {[%clk 0:01:29.1]} 27... Be8 {[%clk 0:00:05.9]}
28. Qxb7 {[%clk 0:01:28.5]} 28... Rb8 {[%clk 0:00:05.2]} 29. Qxa7 {[%clk
0:01:28.6]} 29... Qb6 {[%clk 0:00:03.3]} 30. Qxb6 {[%clk 0:01:28.3]} 30... Rbxb6
{[%clk 0:00:04.2]} 31. Rc8 {[%clk 0:01:25.6]} 31... Kf8 {[%clk 0:00:01.5]} 32.
Bc4 {[%clk 0:01:26.1]} 32... Ke7 {[%clk 0:00:01.3]} 33. Rc7+ {[%clk 0:01:25.6]}
33... Bd7 {[%clk 0:00:01.7]} 34. a4 {[%clk 0:01:25.2]} 1-0

[Event "*** Titled Tuesday Blitz"]
[Site "Chess.com"]
[Date "2020.05.19"]
[Round "3"]
[White "HanSchut"]
[Black "pichonazo"]
[Result "0-1"]
[WhiteElo "2228"]
[BlackElo "2503"]
[TimeControl "180+1"]
[EndTime "12:27:35 PDT"]
[Termination "pichonazo won by checkmate"]

1. e4 {[%clk 0:03:00.9]} 1... c5 {[%clk 0:02:59.7]} 2. Nf3 {[%clk 0:03:01.1]}
2... d6 {[%clk 0:02:59.7]} 3. d4 {[%clk 0:03:01.4]} 3... cxd4 {[%clk 0:02:59.7]}
4. Nxd4 {[%clk 0:03:02.3]} 4... Nf6 {[%clk 0:02:59.6]} 5. f3 {[%clk 0:03:02.8]}
5... Nc6 {[%clk 0:02:59]} 6. c4 {[%clk 0:03:02.1]} 6... g6 {[%clk 0:02:58.6]} 7.
Be3 {[%clk 0:03:02.1]} 7... Bg7 {[%clk 0:02:59]} 8. Nc3 {[%clk 0:03:02.4]} 8...
O-O {[%clk 0:02:59.3]} 9. Qd2 {[%clk 0:03:02.9]} 9... Bd7 {[%clk 0:02:55.8]} 10.
Be2 {[%clk 0:03:02.6]} 10... Nxd4 {[%clk 0:02:55.6]} 11. Bxd4 {[%clk 0:03:02.5]}
11... Bc6 {[%clk 0:02:56.1]} 12. Rc1 {[%clk 0:03:02]} 12... e6 {[%clk
0:02:55.3]} 13. O-O {[%clk 0:02:59.3]} 13... Qe7 {[%clk 0:02:55.2]} 14. Rfd1
{[%clk 0:02:58.5]} 14... Rfd8 {[%clk 0:02:55]} 15. Qe3 {[%clk 0:02:41.7]} 15...
a6 {[%clk 0:02:50.8]} 16. Bb6 {[%clk 0:02:40.9]} 16... Rd7 {[%clk 0:02:44]} 17.
b4 {[%clk 0:02:40.8]} 17... d5 {[%clk 0:02:27.3]} 18. b5 {[%clk 0:02:39.2]}
18... dxe4 {[%clk 0:02:21.4]} 19. bxc6 {[%clk 0:02:36.7]} 19... bxc6 {[%clk
0:02:21.4]} 20. Rxd7 {[%clk 0:02:14.5]} 20... Nxd7 {[%clk 0:02:16.6]} 21. Nxe4
{[%clk 0:02:05.5]} 21... Nxb6 {[%clk 0:02:11.1]} 22. Qxb6 {[%clk 0:02:04.7]}
22... Qa3 {[%clk 0:02:11.4]} 23. Rd1 {[%clk 0:01:56.1]} 23... Qxa2 {[%clk
0:02:04.2]} 24. Rd8+ {[%clk 0:01:55.7]} 24... Rxd8 {[%clk 0:02:04.1]} 25. Qxd8+
{[%clk 0:01:55.3]} 25... Bf8 {[%clk 0:02:04.7]} 26. Nf6+ {[%clk 0:01:43.2]}
26... Kg7 {[%clk 0:02:03.6]} 27. Qd4 {[%clk 0:01:26.5]} 27... Qxe2 {[%clk
0:01:50.8]} 28. Ne8+ {[%clk 0:01:26.3]} 28... Kg8 {[%clk 0:01:50.7]} 29. Nf6+
{[%clk 0:01:26.7]} 29... Kh8 {[%clk 0:01:42.7]} 30. Ne8+ {[%clk 0:01:25.5]}
30... e5 {[%clk 0:01:39.9]} 31. Qa1 {[%clk 0:01:12]} 31... Bc5+ {[%clk 0:01:34]}
32. Kh1 {[%clk 0:01:11.8]} 32... Bd4 {[%clk 0:01:31.2]} 33. Qb1 {[%clk
0:00:59.4]} 33... Qxc4 {[%clk 0:01:24.6]} 34. Nd6 {[%clk 0:00:59.2]} 34... Qd5
{[%clk 0:01:13.9]} 35. Qb8+ {[%clk 0:00:57.4]} 35... Kg7 {[%clk 0:01:14]} 36. h4
{[%clk 0:00:51.2]} 36... Bf2 {[%clk 0:01:08.5]} 37. Ne8+ {[%clk 0:00:45.4]}
37... Kh6 {[%clk 0:01:04.6]} 38. Nf6 {[%clk 0:00:45.7]} 38... Qd1+ {[%clk
0:00:52.4]} 39. Kh2 {[%clk 0:00:46.2]} 39... Qg1+ {[%clk 0:00:52.3]} 40. Kh3
{[%clk 0:00:46.7]} 40... Qh1+ {[%clk 0:00:52.6]} 41. Kg4 {[%clk 0:00:44.4]}
41... Qxg2# {[%clk 0:00:50.5]} 0-1

[Event "*** Titled Tuesday Blitz"]
[Site "Chess.com"]
[Date "2020.05.19"]
[Round "3"]
[White "FMOlexandrProhorov"]
[Black "Kaua18"]
[Result "0-1"]
[WhiteElo "2116"]
[BlackElo "2329"]
[TimeControl "180+1"]
[EndTime "12:27:38 PDT"]
[Termination "Kaua18 won by checkmate"]

1. Nf3 {[%clk 0:03:00.9]} 1... c5 {[%clk 0:02:59.9]} 2. e4 {[%clk 0:03:00]} 2...
Nc6 {[%clk 0:02:59.5]} 3. c3 {[%clk 0:03:00.1]} 3... Nf6 {[%clk 0:02:59.1]} 4.
e5 {[%clk 0:02:59.9]} 4... Nd5 {[%clk 0:02:59.4]} 5. Bc4 {[%clk 0:03:00.5]} 5...
e6 {[%clk 0:02:59.6]} 6. d4 {[%clk 0:02:59.7]} 6... cxd4 {[%clk 0:02:59.9]} 7.
cxd4 {[%clk 0:02:59.6]} 7... d6 {[%clk 0:03:00.3]} 8. O-O {[%clk 0:02:58.3]}
8... Be7 {[%clk 0:03:00.1]} 9. Qe2 {[%clk 0:02:58.4]} 9... O-O {[%clk
0:02:59.4]} 10. Nc3 {[%clk 0:02:54.9]} 10... Nxc3 {[%clk 0:02:57.9]} 11. bxc3
{[%clk 0:02:55.2]} 11... dxe5 {[%clk 0:02:58.2]} 12. dxe5 {[%clk 0:02:55]} 12...
Qc7 {[%clk 0:02:57.4]} 13. Re1 {[%clk 0:02:46.5]} 13... b6 {[%clk 0:02:57.2]}
14. Bd3 {[%clk 0:02:38.4]} 14... Bb7 {[%clk 0:02:56.4]} 15. Qe4 {[%clk
0:02:33.9]} 15... g6 {[%clk 0:02:56]} 16. Qg4 {[%clk 0:02:33.9]} 16... Rfd8
{[%clk 0:02:55.5]} 17. Bc2 {[%clk 0:02:20.5]} 17... Rd5 {[%clk 0:02:43.1]} 18.
Bf4 {[%clk 0:02:18.2]} 18... Rad8 {[%clk 0:02:40.8]} 19. h4 {[%clk 0:02:17.5]}
19... Kf8 {[%clk 0:02:27.1]} 20. h5 {[%clk 0:02:16.2]} 20... Na5 {[%clk
0:02:21.6]} 21. hxg6 {[%clk 0:02:11.8]} 21... hxg6 {[%clk 0:01:35.3]} 22. Bh6+
{[%clk 0:02:07.8]} 22... Ke8 {[%clk 0:01:34.5]} 23. Bxg6 {[%clk 0:02:05.5]}
23... fxg6 {[%clk 0:01:28]} 24. Qxe6 {[%clk 0:01:59.6]} 24... Qc6 {[%clk
0:01:27.3]} 25. Qg8+ {[%clk 0:01:55.9]} 25... Kd7 {[%clk 0:01:27.1]} 26. e6+
{[%clk 0:01:52.2]} 26... Kc8 {[%clk 0:01:26]} 27. Qxg6 {[%clk 0:01:50.9]} 27...
Kb8 {[%clk 0:01:18.5]} 28. Bf4+ {[%clk 0:01:47.9]} 28... Ka8 {[%clk 0:01:18.3]}
29. Rac1 {[%clk 0:01:35.5]} 29... Rf8 {[%clk 0:01:16.2]} 30. Bg3 {[%clk
0:01:31.1]} 30... Rdd8 {[%clk 0:01:08.8]} 31. c4 {[%clk 0:01:23.4]} 31... Rxf3
{[%clk 0:00:59.1]} 32. gxf3 {[%clk 0:01:23]} 32... Qxf3 {[%clk 0:00:59.1]} 33.
Kf1 {[%clk 0:01:08.1]} 33... Qg2+ {[%clk 0:00:29.8]} 34. Ke2 {[%clk 0:01:07.5]}
34... Qf3+ {[%clk 0:00:26.5]} 35. Kf1 {[%clk 0:01:07.3]} 35... Bc5 {[%clk
0:00:26.2]} 36. e7 {[%clk 0:01:03.4]} 36... Qg2+ {[%clk 0:00:25.1]} 37. Ke2
{[%clk 0:01:02.9]} 37... Bf3# {[%clk 0:00:25.6]} 0-1

[Event "*** Titled Tuesday Blitz"]
[Site "Chess.com"]
[Date "2020.05.19"]
[Round "3"]
[White "MasterKroket"]
[Black "chessuriel"]
[Result "1-0"]
[WhiteElo "2396"]
[BlackElo "2176"]
[TimeControl "180+1"]
[EndTime "12:27:39 PDT"]
[Termination "MasterKroket won by resignation"]

1. d4 {[%clk 0:03:00.9]} 1... Nf6 {[%clk 0:02:59.2]} 2. c4 {[%clk 0:02:59.5]}
2... e6 {[%clk 0:02:59.5]} 3. Nf3 {[%clk 0:02:59]} 3... Bb4+ {[%clk 0:02:59.6]}
4. Bd2 {[%clk 0:02:59.1]} 4... Qe7 {[%clk 0:02:59]} 5. g3 {[%clk 0:02:59.3]}
5... Nc6 {[%clk 0:02:56.6]} 6. Bg2 {[%clk 0:02:59.4]} 6... O-O {[%clk
0:02:52.8]} 7. O-O {[%clk 0:02:59.1]} 7... Bxd2 {[%clk 0:02:44.5]} 8. Nbxd2
{[%clk 0:02:57.6]} 8... d6 {[%clk 0:02:45.4]} 9. e4 {[%clk 0:02:56.2]} 9... e5
{[%clk 0:02:45.2]} 10. d5 {[%clk 0:02:56.3]} 10... Nb8 {[%clk 0:02:44.2]} 11.
Ne1 {[%clk 0:02:56.5]} 11... Nbd7 {[%clk 0:02:43.1]} 12. b4 {[%clk 0:02:55]}
12... a5 {[%clk 0:02:42.7]} 13. a3 {[%clk 0:02:53.9]} 13... axb4 {[%clk
0:01:37.6]} 14. axb4 {[%clk 0:02:52.6]} 14... Rxa1 {[%clk 0:01:38.5]} 15. Qxa1
{[%clk 0:02:53]} 15... c5 {[%clk 0:01:38.5]} 16. b5 {[%clk 0:02:41.5]} 16... Ne8
{[%clk 0:01:23]} 17. Nc2 {[%clk 0:02:34.6]} 17... g6 {[%clk 0:01:22]} 18. Ne3
{[%clk 0:02:31.5]} 18... Ng7 {[%clk 0:01:20.4]} 19. Bh3 {[%clk 0:02:21.3]} 19...
f5 {[%clk 0:01:12.3]} 20. f4 {[%clk 0:02:05.7]} 20... exf4 {[%clk 0:01:09.1]}
21. Rxf4 {[%clk 0:02:05.1]} 21... Nf6 {[%clk 0:00:52.1]} 22. Qc3 {[%clk
0:01:49]} 22... Nfh5 {[%clk 0:00:36.5]} 23. Rf2 {[%clk 0:01:41.6]} 23... f4
{[%clk 0:00:28.5]} 24. Ng4 {[%clk 0:01:32.6]} 24... Qg5 {[%clk 0:00:21.6]} 25.
Nf3 {[%clk 0:01:26.9]} 25... Qe7 {[%clk 0:00:17.5]} 26. Nh6+ {[%clk 0:01:20.9]}
26... Kh8 {[%clk 0:00:17.5]} 27. Bxc8 {[%clk 0:01:20]} 27... Rxc8 {[%clk
0:00:17.6]} 28. g4 {[%clk 0:01:13.5]} 28... Nf6 {[%clk 0:00:15.9]} 29. Ng5
{[%clk 0:01:13.6]} 29... Rf8 {[%clk 0:00:11.5]} 30. Rxf4 {[%clk 0:01:10.6]}
30... Nd7 {[%clk 0:00:08.5]} 31. Rxf8+ {[%clk 0:01:08.8]} 31... Nxf8 {[%clk
0:00:07.8]} 32. Ngf7+ {[%clk 0:01:08.9]} 1-0

[Event "*** Titled Tuesday Blitz"]
[Site "Chess.com"]
[Date "2020.05.19"]
[Round "3"]
[White "cfjohansson"]
[Black "PawnEatingZombie"]
[Result "0-1"]
[WhiteElo "2407"]
[BlackElo "2258"]
[TimeControl "180+1"]
[EndTime "12:27:39 PDT"]
[Termination "PawnEatingZombie won by resignation"]

1. d4 {[%clk 0:03:00.9]} 1... d5 {[%clk 0:02:59.1]} 2. c4 {[%clk 0:03:00.5]}
2... e6 {[%clk 0:02:58.8]} 3. Nc3 {[%clk 0:03:00.2]} 3... Bb4 {[%clk 0:02:59]}
4. e3 {[%clk 0:02:57.7]} 4... Nf6 {[%clk 0:02:58.1]} 5. a3 {[%clk 0:02:57.6]}
5... Bxc3+ {[%clk 0:02:56.9]} 6. bxc3 {[%clk 0:02:58.5]} 6... c6 {[%clk
0:02:55.6]} 7. f3 {[%clk 0:02:56.2]} 7... O-O {[%clk 0:02:53]} 8. cxd5 {[%clk
0:02:56.3]} 8... cxd5 {[%clk 0:02:52.4]} 9. Bd3 {[%clk 0:02:56.1]} 9... b6
{[%clk 0:02:52.7]} 10. Qe2 {[%clk 0:02:54.6]} 10... Bb7 {[%clk 0:02:45.8]} 11.
Nh3 {[%clk 0:02:49.7]} 11... Qc8 {[%clk 0:02:45.8]} 12. Bd2 {[%clk 0:02:48.5]}
12... Ba6 {[%clk 0:02:45.7]} 13. Nf2 {[%clk 0:02:46.1]} 13... Bxd3 {[%clk
0:02:45]} 14. Qxd3 {[%clk 0:02:46.7]} 14... Qa6 {[%clk 0:02:44.5]} 15. Qxa6
{[%clk 0:02:43.4]} 15... Nxa6 {[%clk 0:02:44]} 16. e4 {[%clk 0:02:41.2]} 16...
Rfc8 {[%clk 0:02:41.7]} 17. O-O {[%clk 0:02:32.9]} 17... Nb8 {[%clk 0:02:39.9]}
18. a4 {[%clk 0:02:19.5]} 18... Nc6 {[%clk 0:02:39.7]} 19. Rfc1 {[%clk
0:02:06.4]} 19... Na5 {[%clk 0:02:39.4]} 20. Rab1 {[%clk 0:01:56.3]} 20... Rc4
{[%clk 0:02:36.3]} 21. Rb4 {[%clk 0:01:48.5]} 21... Rac8 {[%clk 0:02:34.6]} 22.
Rcb1 {[%clk 0:01:47.1]} 22... h6 {[%clk 0:02:28.3]} 23. Kf1 {[%clk 0:01:47.2]}
23... Rxb4 {[%clk 0:01:45.3]} 24. Rxb4 {[%clk 0:01:36.4]} 24... Nc4 {[%clk
0:01:42.6]} 25. Bc1 {[%clk 0:01:31.2]} 25... Kf8 {[%clk 0:01:40.5]} 26. Ke2
{[%clk 0:01:28.9]} 26... Ke7 {[%clk 0:01:40]} 27. Kd3 {[%clk 0:01:25.7]} 27...
Kd7 {[%clk 0:01:25.7]} 28. e5 {[%clk 0:01:10.4]} 28... Ne8 {[%clk 0:01:21.4]}
29. f4 {[%clk 0:01:10.1]} 29... h5 {[%clk 0:01:18.8]} 30. g3 {[%clk 0:01:08.1]}
30... g6 {[%clk 0:01:18.7]} 31. h3 {[%clk 0:01:08.1]} 31... Ng7 {[%clk
0:01:17.6]} 32. g4 {[%clk 0:01:07.8]} 32... hxg4 {[%clk 0:01:17.6]} 33. hxg4
{[%clk 0:01:08.7]} 33... Rh8 {[%clk 0:01:14.3]} 34. Nd1 {[%clk 0:00:43]} 34...
Rh1 {[%clk 0:01:07.8]} 35. Ke2 {[%clk 0:00:35.4]} 35... Rg1 {[%clk 0:00:53.5]}
36. Ne3 {[%clk 0:00:35.2]} 36... Rxc1 {[%clk 0:00:51.5]} 0-1

[Event "*** Titled Tuesday Blitz"]
[Site "Chess.com"]
[Date "2020.05.19"]
[Round "3"]
[White "WanderingPuppet"]
[Black "RenanSoares1972"]
[Result "1-0"]
[WhiteElo "2310"]
[BlackElo "2061"]
[TimeControl "180+1"]
[EndTime "12:27:40 PDT"]
[Termination "WanderingPuppet won on time"]

1. e4 {[%clk 0:02:51.5]} 1... c5 {[%clk 0:02:14.7]} 2. Nf3 {[%clk 0:02:34.7]}
2... d6 {[%clk 0:02:14.2]} 3. d4 {[%clk 0:02:33.8]} 3... cxd4 {[%clk 0:02:14.4]}
4. Nxd4 {[%clk 0:02:34.4]} 4... Nf6 {[%clk 0:02:14.5]} 5. Nc3 {[%clk 0:02:34.7]}
5... Nc6 {[%clk 0:02:14.7]} 6. Bg5 {[%clk 0:02:34.3]} 6... e6 {[%clk 0:02:14.6]}
7. Qd2 {[%clk 0:02:34]} 7... Be7 {[%clk 0:02:14.5]} 8. O-O-O {[%clk 0:02:34.1]}
8... a6 {[%clk 0:02:13.5]} 9. h4 {[%clk 0:02:33.7]} 9... Qc7 {[%clk 0:02:13]}
10. f3 {[%clk 0:02:33]} 10... Bd7 {[%clk 0:02:11.3]} 11. g4 {[%clk 0:02:32.5]}
11... b5 {[%clk 0:02:03.5]} 12. Nxc6 {[%clk 0:02:32.1]} 12... Bxc6 {[%clk
0:02:03.5]} 13. Bd3 {[%clk 0:02:32.6]} 13... O-O-O {[%clk 0:01:56.3]} 14. Kb1
{[%clk 0:02:31.6]} 14... Kb8 {[%clk 0:01:55.9]} 15. Ne2 {[%clk 0:02:24]} 15...
Rc8 {[%clk 0:01:48.4]} 16. Rc1 {[%clk 0:02:23.6]} 16... Rhd8 {[%clk 0:01:47]}
17. c4 {[%clk 0:02:23]} 17... Qb7 {[%clk 0:01:40.5]} 18. Nd4 {[%clk 0:02:10.9]}
18... b4 {[%clk 0:01:33.5]} 19. Rc2 {[%clk 0:02:02.3]} 19... a5 {[%clk
0:01:20.4]} 20. Rhc1 {[%clk 0:02:01.3]} 20... h6 {[%clk 0:01:20.1]} 21. Be3
{[%clk 0:01:59.6]} 21... Nd7 {[%clk 0:01:19.4]} 22. g5 {[%clk 0:01:55.8]} 22...
hxg5 {[%clk 0:01:16.7]} 23. hxg5 {[%clk 0:01:56.7]} 23... Nc5 {[%clk 0:01:16.5]}
24. Be2 {[%clk 0:01:56]} 24... Nxe4 {[%clk 0:01:14.4]} 25. fxe4 {[%clk
0:01:55.2]} 25... Bxe4 {[%clk 0:01:14.5]} 26. Bd3 {[%clk 0:01:52.6]} 26... Bxd3
{[%clk 0:00:57.7]} 27. Qxd3 {[%clk 0:01:53.5]} 27... Rc5 {[%clk 0:00:51.7]} 28.
Nb5 {[%clk 0:01:47.1]} 28... Re5 {[%clk 0:00:18.9]} 29. Bf4 {[%clk 0:01:35.2]}
29... Bxg5 {[%clk 0:00:06.7]} 30. Bxe5 {[%clk 0:01:33.1]} 30... dxe5 {[%clk
0:00:06.8]} 31. Nd6 {[%clk 0:01:26.8]} 31... Rxd6 {[%clk 0:00:04.3]} 32. Qxd6+
{[%clk 0:01:26.3]} 1-0

[Event "*** Titled Tuesday Blitz"]
[Site "Chess.com"]
[Date "2020.05.19"]
[Round "3"]
[White "Man-Chuk"]
[Black "Barmen_EV"]
[Result "1-0"]
[WhiteElo "2723"]
[BlackElo "2479"]
[TimeControl "180+1"]
[EndTime "12:27:43 PDT"]
[Termination "Man-Chuk won on time"]

1. d4 {[%clk 0:02:58.7]} 1... d5 {[%clk 0:02:57]} 2. c4 {[%clk 0:02:58.6]} 2...
e6 {[%clk 0:02:56.2]} 3. Nc3 {[%clk 0:02:58.8]} 3... Bb4 {[%clk 0:02:56.3]} 4.
e3 {[%clk 0:02:56.5]} 4... Nf6 {[%clk 0:02:56.1]} 5. a3 {[%clk 0:02:55.5]} 5...
Bxc3+ {[%clk 0:02:54.6]} 6. bxc3 {[%clk 0:02:56.4]} 6... O-O {[%clk 0:02:51.6]}
7. Nf3 {[%clk 0:02:55.8]} 7... b6 {[%clk 0:02:50]} 8. Bd3 {[%clk 0:02:55.1]}
8... Ba6 {[%clk 0:02:49.4]} 9. cxd5 {[%clk 0:02:55]} 9... exd5 {[%clk
0:02:50.3]} 10. Bxa6 {[%clk 0:02:53.6]} 10... Nxa6 {[%clk 0:02:51.2]} 11. Qd3
{[%clk 0:02:50.6]} 11... Qc8 {[%clk 0:02:48.5]} 12. c4 {[%clk 0:02:50.8]} 12...
c5 {[%clk 0:02:41.9]} 13. Bb2 {[%clk 0:02:34.4]} 13... cxd4 {[%clk 0:02:36.4]}
14. Bxd4 {[%clk 0:02:16.6]} 14... Qxc4 {[%clk 0:02:16.4]} 15. Qf5 {[%clk
0:02:02.9]} 15... Ne4 {[%clk 0:01:59.4]} 16. Ne5 {[%clk 0:01:57.4]} 16... Qb5
{[%clk 0:01:33.8]} 17. Ng4 {[%clk 0:01:24.2]} 17... Qa5+ {[%clk 0:01:19.1]} 18.
Ke2 {[%clk 0:01:20]} 18... Qb5+ {[%clk 0:01:15.8]} 19. Kf3 {[%clk 0:01:18.3]}
19... Qd3 {[%clk 0:00:28.3]} 20. Qxd5 {[%clk 0:01:15]} 20... Nd2+ {[%clk
0:00:09]} 21. Kf4 {[%clk 0:01:14.7]} 21... Nc7 {[%clk 0:00:01.7]} 22. Qe5 {[%clk
0:00:58.9]} 22... Ne6+ {[%clk 0:00:02.6]} 23. Kg3 {[%clk 0:00:59.4]} 1-0